[Event "58th Akiba Rubinstein A 2022"]
[Site "Polanica-Zdroj"]
[Date "2022.08.17"]
[Round "5.4"]
[White "Dziewonski, Dariusz"]
[Black "Smietanska, Wiktoria"]
[Result "1-0"]
[ECO "B10"]
[WhiteElo "2029"]
[BlackElo "1919"]
[Annotator "NA RC"]
[PlyCount "141"]
[EventDate "2022.08.13"]
[EventCountry "POL"]
[SourceTitle "playchess.com"]
[Source "ChessBase"]
[SourceQuality "1"]
[TimeControl "40/5400+30:1800+30"]

1. e4 {[%emt 0:00:04]} c6 {[%emt 0:00:08]} 2. Nc3 {[%emt 0:00:07]} d5 {[%emt 0:00:09]} 3. Nf3 {[%emt 0:00:04]} dxe4 {[%emt 0:00:10]} 4. Nxe4 {[%emt 0:00:06]} Nf6 {[%emt 0:00:08]} 5. Qe2 {[%emt 0:00:10]} Nxe4 {[%emt 0:00:23]} 6. Qxe4 {[%emt 0:00:05]} Qa5 {[%emt 0:00:12]} 7. b4 {[%emt 0:14:43]} Qd5 {[%emt 0:00:14]} 8. Qf4 {[%emt 0:10:29]} Qf5 {[%emt 0:03:58]} 9. Qxf5 {[%emt 0:09:07]} Bxf5 {[%emt 0:00:08]} 10. c3 {[%emt 0:02:06]} Nd7 {[%emt 0:05:47]} 11. d4 {[%emt 0:08:19]} e6 {[%emt 0:02:07]} 12. a3 {[%emt 0:11:48]} Bd6 {[%emt 0:02:04]} 13. Be3 {[%emt 0:04:36]} e5 {[%emt 0:03:31]} 14. dxe5 {[%emt 0:10:44]} Nxe5 {[%emt 0:00:12]} 15. O-O-O {[%emt 0:00:08]} Bc7 {[%emt 0:05:24]} 16. Nxe5 {[%emt 0:03:07]} Bxe5 {[%emt 0:00:12]} 17. Bd4 {[%emt 0:01:42]} Bxd4 {[%emt 0:01:19]} 18. Rxd4 {[%emt 0:00:04]} Rd8 {[%emt 0:02:41]} 19. Rxd8+ {[%emt 0:02:00]} Kxd8 {[%emt 0:00:07]} 20. Bc4 {[%emt 0:00:16]} f6 {[%emt 0:00:57]} 21. Bd3 {[%emt 0:08:42]} Bxd3 {[%emt 0:00:52]} 22. Rd1 {[%emt 0:00:04]} Kc7 {[%emt 0:00:22]} 23. Rxd3 {[%emt 0:00:04]} Re8 {[%emt 0:00:15]} 24. Rh3 {[%emt 0:02:35]} h6 {[%emt 0:00:18]} 25. Rg3 {[%emt 0:00:29]} Re7 {[%emt 0:00:31]} 26. c4 {[%emt 0:00:50]} c5 {[%emt 0:02:05]} 27. Kd2 {[%emt 0:01:17]} cxb4 {[%emt 0:02:07]} 28. axb4 {[%emt 0:00:04]} a6 {[%emt 0:00:23]} 29. Kd3 {[%emt 0:02:59]} Kc6 {[%emt 0:00:26]} 30. Kd4 {[%emt 0:00:47]} Kd6 {[%emt 0:01:23]} 31. f4 {[%emt 0:01:04]} Kc6 {[%emt 0:00:53]} 32. h3 {[%emt 0:02:34]} Kd6 {[%emt 0:01:41]} 33. Rg4 {[%emt 0:02:43]} Kc6 {[%emt 0:01:49]} 34. Rg6 {[%emt 0:00:37]} Kd6 {[%emt 0:01:29]} 35. Rg4 {[%emt 0:00:26]} Kc6 {[%emt 0:00:14]} 36. Rg3 {[%emt 0:00:05]} Kd6 {[%emt 0:02:49]} 37. Kc3 {[%emt 0:01:28]} Kc6 {[%emt 0:00:23]} 38. Kd3 {[%emt 0:00:28]} b5 {[%emt 0:02:18]} 39. Kd4 {[%emt 0:00:31]} bxc4 {[%emt 0:00:36]} 40. Kxc4 {[%emt 0:00:00]} Re4+ {[%emt 0:00:00]} 41. Kc3 {[%emt 0:02:10]} Re7 {[%emt 0:01:53]} 42. Rd3 {[%emt 0:05:17]} Re4 {[%emt 0:00:45]} 43. g3 {[%emt 0:01:05]} a5 {[%emt 0:00:48]} 44. bxa5 {[%emt 0:01:57]} Ra4 {[%emt 0:00:07]} 45. Kd2 {[%emt 0:04:54]} Rxa5 {[%emt 0:00:07]} 46. Ke3 {[%emt 0:00:04]} Ra7 {[%emt 0:01:38]} 47. Ke4 {[%emt 0:06:44]} Ra5 {[%emt 0:01:59]} 48. f5 {[%emt 0:02:49]} Ra4+ {[%emt 0:02:20]} 49. Kf3 {[%emt 0:00:38]} h5 {[%emt 0:02:11]} 50. g4 {[%emt 0:02:01]} hxg4+ {[%emt 0:00:21]} 51. hxg4 {[%emt 0:00:04]} Ra5 {[%emt 0:00:45]} 52. Kg3 {[%emt 0:00:51]} Rd5 {[%emt 0:07:11]} 53. Ra3 {[%emt 0:00:30]} Rd7 {[%emt 0:04:52]} 54. Re3 {[%emt 0:01:51]} Kd5 {[%emt 0:01:46]} 55. Kh4 {[%emt 0:01:26]} Rc7 {[%emt 0:04:34]} 56. Kh5 {[%emt 0:00:35]} Kd4 {[%emt 0:06:12]} 57. Re8 {[%emt 0:01:02]} Kd5 {[%emt 0:01:34]} 58. Kg6 {[%emt 0:00:21]} Kd6 {[%emt 0:02:12]} 59. Rg8 {[%emt 0:01:13]} Rc4 {[%emt 0:00:43]} 60. Rxg7 {[%emt 0:00:33]} Ke5 {[%emt 0:00:55]} 61. Re7+ {[%emt 0:00:23]} Kf4 {[%emt 0:00:27]} 62. Kxf6 {[%emt 0:00:12]} Kxg4 {[%emt 0:00:13]} 63. Kg6 {[%emt 0:00:48]} Rc5 {[%emt 0:00:21]} 64. Re4+ {[%emt 0:00:27]} Kf3 {[%emt 0:00:05]} 65. Ra4 {[%emt 0:00:07]} Rc1 {[%emt 0:00:23]} 66. f6 {[%emt 0:00:10]} Rg1+ {[%emt 0:00:09]} 67. Kf7 {[%emt 0:00:06]} Ke3 {[%emt 0:00:05]} 68. Kf8 {[%emt 0:00:10]} Rf1 {[%emt 0:00:07]} 69. f7 {[%emt 0:00:04]} Kd3 {[%emt 0:00:07]} 70. Rg4 {[%emt 0:00:19]} Rf2 {[%emt 0:00:07]} 71. Kg7 {[%emt 0:00:05]} 1-0

[Event "58th Akiba Rubinstein A 2022"]
[Site "Polanica-Zdroj"]
[Date "2022.08.17"]
[Round "5.5"]
[White "Bugajski, Robert"]
[Black "Kolodziejski, Piotr"]
[Result "0-1"]
[ECO "A05"]
[WhiteElo "2075"]
[BlackElo "2107"]
[Annotator "NA RC"]
[PlyCount "103"]
[EventDate "2022.08.13"]
[EventCountry "POL"]
[SourceTitle "playchess.com"]
[Source "ChessBase"]
[SourceQuality "1"]
[TimeControl "40/5400+30:1800+30"]

1. Nf3 {[%emt 0:00:03]} Nf6 {[%emt 0:00:14]} 2. g3 {[%emt 0:00:09]} d5 {[%emt 0:01:16]} 3. Bg2 {[%emt 0:00:08]} c6 {[%emt 0:01:42]} 4. O-O {[%emt 0:00:10]} Bf5 {[%emt 0:01:08]} 5. d3 {[%emt 0:02:31]} h6 {[%emt 0:02:19]} 6. Nbd2 {[%emt 0:00:51]} e6 {[%emt 0:00:28]} 7. b3 {[%emt 0:00:34]} Be7 {[%emt 0:00:42]} 8. Bb2 {[%emt 0:00:10]} O-O {[%emt 0:00:22]} 9. c4 {[%emt 0:02:56]} Nbd7 {[%emt 0:02:57]} 10. Qc2 {[%emt 0:00:59]} Bh7 {[%emt 0:01:07]} 11. Rad1 {[%emt 0:01:54]} a5 {[%emt 0:09:16]} 12. a3 {[%emt 0:01:56]} Qb6 {[%emt 0:05:02]} 13. Qc3 {[%emt 0:04:46]} Nc5 {[%emt 0:05:08]} 14. Ne5 {[%emt 0:01:33]} Rfd8 {[%emt 0:04:00]} 15. h3 {[%emt 0:09:08]} d4 {[%emt 0:06:10]} 16. Qc2 {[%emt 0:00:19]} Ncd7 {[%emt 0:02:05]} 17. Nef3 {[%emt 0:10:44]} e5 {[%emt 0:03:05]} 18. Rfe1 {[%emt 0:02:54]} Bc5 {[%emt 0:03:15]} 19. Rb1 {[%emt 0:02:20]} Re8 {[%emt 0:02:44]} 20. Ne4 {[%emt 0:08:25]} Nxe4 {[%emt 0:04:52]} 21. dxe4 {[%emt 0:00:39]} Nf6 {[%emt 0:03:08]} 22. Nh2 {[%emt 0:10:24]} Qc7 {[%emt 0:05:39]} 23. Ng4 {[%emt 0:06:42]} Nd7 {[%emt 0:04:18]} 24. Red1 {[%emt 0:03:25]} h5 {[%emt 0:02:40]} 25. Nh2 {[%emt 0:00:24]} Nf6 {[%emt 0:08:20]} 26. Bc1 {[%emt 0:02:46]} Qe7 {[%emt 0:00:14]} 27. a4 {[%emt 0:02:46]} Nd7 {[%emt 0:00:49]} 28. Nf3 {[%emt 0:01:20]} Nf8 {[%emt 0:01:31]} 29. Ne1 {[%emt 0:01:53]} Qe6 {[%emt 0:07:08]} 30. Nd3 {[%emt 0:00:45]} Nd7 {[%emt 0:02:34]} 31. e3 {[%emt 0:05:29]} Rad8 {[%emt 0:05:44]} 32. Kh2 {[%emt 0:02:56]} Qe7 {[%emt 0:01:43]} 33. exd4 {[%emt 0:05:00]} Bxd4 {[%emt 0:00:35]} 34. Qe2 {[%emt 0:00:39]} h4 {[%emt 0:01:23]} 35. g4 {[%emt 0:01:11]} g5 {[%emt 0:01:01]} 36. Qd2 {[%emt 0:03:18]} f6 {[%emt 0:01:09]} 37. Qxa5 {[%emt 0:00:08]} Nf8 {[%emt 0:01:12]} 38. Qe1 {[%emt 0:02:36]} Rd7 {[%emt 0:00:10]} 39. Be3 {[%emt 0:02:09]} c5 {[%emt 0:01:01]} 40. b4 {[%emt 0:00:00]} cxb4 {[%emt 0:00:00]} 41. Nxb4 {[%emt 0:02:43]} Bxe3 {[%emt 0:04:04]} 42. fxe3 {[%emt 0:01:59]} Rxd1 {[%emt 0:00:04]} 43. Qxd1 {[%emt 0:00:03]} Ne6 {[%emt 0:03:32]} 44. Nd5 {[%emt 0:00:29]} Qf7 {[%emt 0:00:50]} 45. Qb3 {[%emt 0:03:24]} Nc7 {[%emt 0:08:54]} 46. Qxb7 {[%emt 0:07:36]} Nxd5 {[%emt 0:00:05]} 47. cxd5 {[%emt 0:00:42]} Re7 {[%emt 0:00:48]} 48. Qc8+ {[%emt 0:04:36]} Kg7 {[%emt 0:00:10]} 49. Rc1 {[%emt 0:01:09]} Re8 {[%emt 0:00:58]} 50. Qc7 {[%emt 0:01:01]} Re7 {[%emt 0:01:14]} 51. d6 {[%emt 0:00:30]} Rxc7 {[%emt 0:01:26]} 52. dxc7 {[%emt 0:00:19]} 0-1

[Event "58th Akiba Rubinstein A 2022"]
[Site "Polanica-Zdroj"]
[Date "2022.08.17"]
[Round "5.6"]
[White "Antoniewicz, Jakub"]
[Black "Skrzypczynski, Kacper"]
[Result "1/2-1/2"]
[ECO "D79"]
[WhiteElo "1931"]
[BlackElo "1793"]
[Annotator "NA RC"]
[PlyCount "135"]
[EventDate "2022.08.13"]
[EventCountry "POL"]
[SourceTitle "playchess.com"]
[Source "ChessBase"]
[SourceQuality "1"]
[TimeControl "40/5400+30:1800+30"]

1. d4 {[%emt 0:00:02]} Nf6 {[%emt 0:00:08]} 2. Nf3 {[%emt 0:00:16]} g6 {[%emt 0:00:11]} 3. g3 {[%emt 0:02:34]} Bg7 {[%emt 0:00:15]} 4. Bg2 {[%emt 0:00:04]} O-O {[%emt 0:00:09]} 5. O-O {[%emt 0:00:03]} d5 {[%emt 0:00:16]} 6. c4 {[%emt 0:03:43]} c6 {[%emt 0:01:21]} 7. cxd5 {[%emt 0:15:25]} cxd5 {[%emt 0:03:45]} 8. Nc3 {[%emt 0:00:01]} Nc6 {[%emt 0:00:25]} 9. h3 {[%emt 0:08:12]} Ne4 {[%emt 0:06:59]} 10. Bf4 {[%emt 0:04:55]} Be6 {[%emt 0:11:06]} 11. Rc1 {[%emt 0:04:09]} Nxc3 {[%emt 0:00:51]} 12. Rxc3 {[%emt 0:00:49]} Qd7 {[%emt 0:02:55]} 13. Kh2 {[%emt 0:00:04]} Rfc8 {[%emt 0:03:15]} 14. Qd2 {[%emt 0:02:37]} Bf5 {[%emt 0:00:56]} 15. Rfc1 {[%emt 0:13:26]} Be4 {[%emt 0:02:01]} 16. Ne5 {[%emt 0:00:59]} Bxe5 {[%emt 0:01:16]} 17. Bxe5 {[%emt 0:00:47]} Bxg2 {[%emt 0:00:09]} 18. Kxg2 {[%emt 0:00:04]} f6 {[%emt 0:00:40]} 19. Bf4 {[%emt 0:00:13]} e5 {[%emt 0:01:11]} 20. dxe5 {[%emt 0:04:25]} fxe5 {[%emt 0:00:16]} 21. Bh6 {[%emt 0:03:12]} d4 {[%emt 0:02:15]} 22. e4 {[%emt 0:04:15]} Qe6 {[%emt 0:06:21]} 23. Rf3 {[%emt 0:00:27]} Rc7 {[%emt 0:04:56]} 24. Rc5 {[%emt 0:06:45]} Rf7 {[%emt 0:00:47]} 25. Rxf7 {[%emt 0:00:05]} Qxf7 {[%emt 0:00:09]} 26. Rd5 {[%emt 0:02:16]} Rd8 {[%emt 0:13:26]} 27. Rxd8+ {[%emt 0:00:23]} Nxd8 {[%emt 0:00:05]} 28. Qa5 {[%emt 0:00:02]} Nc6 {[%emt 0:00:07]} 29. Qd5 {[%emt 0:00:57]} a5 {[%emt 0:09:45]} 30. Qd6 {[%emt 0:00:10]} Qe7 {[%emt 0:02:04]} 31. Qd5+ {[%emt 0:00:42]} Qf7 {[%emt 0:00:06]} 32. a3 {[%emt 0:03:16]} a4 {[%emt 0:01:02]} 33. Qc5 {[%emt 0:03:19]} Kh8 {[%emt 0:10:16]} 34. h4 {[%emt 0:00:07]} Kg8 {[%emt 0:01:30]} 35. Qd6 {[%emt 0:01:30]} Qe7 {[%emt 0:00:32]} 36. Qd5+ {[%emt 0:00:04]} Qf7 {[%emt 0:00:07]} 37. Qc5 {[%emt 0:00:11]} Kh8 {[%emt 0:00:39]} 38. Qb5 {[%emt 0:08:46]} Qb3 {[%emt 0:03:40]} 39. Qc5 {[%emt 0:00:01]} Qf7 {[%emt 0:00:19]} 40. Qd6 {[%emt 0:00:00]} Kg8 {[%emt 0:00:00]} 41. Bg5 {[%emt 0:18:49]} Kg7 {[%emt 0:04:57]} 42. h5 {[%emt 0:00:14]} gxh5 {[%emt 0:07:28]} 43. f4 {[%emt 0:03:38]} Qg6 {[%emt 0:01:29]} 44. Qd7+ {[%emt 0:00:19]} Kf8 {[%emt 0:03:28]} 45. Qc8+ {[%emt 0:00:49]} Qe8 {[%emt 0:00:18]} 46. Bh6+ {[%emt 0:01:13]} Kf7 {[%emt 0:02:43]} 47. Qxb7+ {[%emt 0:01:43]} Ne7 {[%emt 0:00:11]} 48. Bg5 {[%emt 0:05:28]} exf4 {[%emt 0:00:09]} 49. gxf4 {[%emt 0:00:09]} Qd8 {[%emt 0:01:30]} 50. f5 {[%emt 0:03:28]} h6 {[%emt 0:05:18]} 51. Bxe7 {[%emt 0:01:05]} Qxe7 {[%emt 0:00:14]} 52. Qd5+ {[%emt 0:00:09]} Kf8 {[%emt 0:01:26]} 53. Qxd4 {[%emt 0:00:09]} Qg5+ {[%emt 0:00:09]} 54. Kf3 {[%emt 0:00:56]} Qg4+ {[%emt 0:00:16]} 55. Kf2 {[%emt 0:01:19]} Qf4+ {[%emt 0:01:19]} 56. Ke2 {[%emt 0:00:46]} h4 {[%emt 0:00:07]} 57. Qf6+ {[%emt 0:02:52]} Ke8 {[%emt 0:00:13]} 58. Qe6+ {[%emt 0:01:20]} Kd8 {[%emt 0:00:07]} 59. f6 {[%emt 0:01:07]} Qh2+ {[%emt 0:00:55]} 60. Kd1 {[%emt 0:00:31]} Qg1+ {[%emt 0:04:05]} 61. Kc2 {[%emt 0:00:27]} Qc5+ {[%emt 0:00:33]} 62. Kd2 {[%emt 0:03:44]} Qd4+ {[%emt 0:00:14]} 63. Ke1 {[%emt 0:00:51]} Qe3+ {[%emt 0:00:19]} 64. Kd1 {[%emt 0:00:11]} Qd3+ {[%emt 0:01:28]} 65. Kc1 {[%emt 0:00:13]} Qf1+ {[%emt 0:00:18]} 66. Kc2 {[%emt 0:00:59]} Qe2+ {[%emt 0:00:09]} 67. Kc1 {[%emt 0:01:19]} Qe1+ {[%emt 0:00:05]} 68. Kc2 {[%emt 0:00:16]} 1/2-1/2

[Event "58th Akiba Rubinstein A 2022"]
[Site "Polanica-Zdroj"]
[Date "2022.08.17"]
[Round "5.7"]
[White "Kejna, Piotr"]
[Black "Majocha, Piotr"]
[Result "1/2-1/2"]
[ECO "C17"]
[WhiteElo "1970"]
[BlackElo "2036"]
[Annotator "NA RC"]
[PlyCount "111"]
[EventDate "2022.08.13"]
[EventCountry "POL"]
[SourceTitle "playchess.com"]
[Source "ChessBase"]
[SourceQuality "1"]
[TimeControl "40/5400+30:1800+30"]

1. e4 e6 2. d4 d5 3. Nc3 Bb4 4. e5 c5 5. Bd2 Ne7 6. a3 Bxc3 7. Bxc3 b6 8. Bb5+ Nd7 9. h4 a5 10. h5 Ba6 11. Bxa6 Rxa6 12. h6 g6 13. Qe2 Ra7 14. Nf3 Nc6 15. Rd1 Rb7 16. a4 c4 17. Bd2 Qb8 18. c3 b5 19. axb5 Na7 20. Ra1 Qc7 21. Bg5 Rxb5 22. Nh2 Qb6 23. Ra2 Nc8 24. Ng4 Qc7 25. Qf3 Ncb6 26. Nf6+ Kf8 27. Rh3 a4 28. Qf4 Nxf6 29. Qxf6 Rg8 30. Rf3 Qd7 31. Kd1 Rb3 32. Kc1 Qe8 33. Qd8 f5 34. Qd6+ Kf7 35. Rxa4 Qd7 36. Qxd7+ Nxd7 37. Ra7 Ke8 38. Rh3 Rf8 39. Kc2 Rf7 40. Rh1 Nb8 41. Rha1 Rfb7 42. Rxb7 Rxb7 43. Ra3 Nc6 44. Bf6 Ra7 45. Rxa7 Nxa7 46. b3 cxb3+ 47. Kxb3 Nc8 48. c4 dxc4+ 49. Kxc4 Nb6+ 50. Kc5 Nd5 51. Kd6 Kf7 52. Bd8 Nf4 53. g3 Nd5 54. Kd7 Nb4 55. Ba5 Nd5 56. Bd8 1/2-1/2

[Event "58th Akiba Rubinstein A 2022"]
[Site "Polanica-Zdroj"]
[Date "2022.08.17"]
[Round "5.8"]
[White "Nowak, Filip"]
[Black "Skurniak, Szymon"]
[Result "1/2-1/2"]
[ECO "B69"]
[WhiteElo "1957"]
[BlackElo "2051"]
[Annotator "NA RC"]
[PlyCount "113"]
[EventDate "2022.08.13"]
[EventCountry "POL"]
[SourceTitle "playchess.com"]
[Source "ChessBase"]
[SourceQuality "1"]
[TimeControl "40/5400+30:1800+30"]

1. e4 {[%emt 0:00:03]} c5 {[%emt 0:00:27]} 2. Nf3 {[%emt 0:00:16]} Nc6 {[%emt 0:00:09]} 3. d4 {[%emt 0:00:06]} cxd4 {[%emt 0:00:04]} 4. Nxd4 {[%emt 0:00:15]} Nf6 {[%emt 0:00:11]} 5. Nc3 {[%emt 0:00:09]} d6 {[%emt 0:00:06]} 6. Bg5 {[%emt 0:00:19]} e6 {[%emt 0:00:15]} 7. Qd2 {[%emt 0:00:10]} a6 {[%emt 0:00:11]} 8. O-O-O {[%emt 0:00:19]} Bd7 {[%emt 0:00:11]} 9. f4 {[%emt 0:00:19]} Be7 {[%emt 0:00:06]} 10. Nf3 {[%emt 0:02:00]} b5 {[%emt 0:03:18]} 11. Bxf6 {[%emt 0:03:10]} gxf6 {[%emt 0:03:26]} 12. f5 {[%emt 0:03:52]} Qb6 {[%emt 0:09:32]} 13. fxe6 {[%emt 0:07:25]} fxe6 {[%emt 0:00:10]} 14. Ne2 {[%emt 0:02:48]} Qa5 {[%emt 0:20:21]} 15. Qxa5 {[%emt 0:09:35]} Nxa5 {[%emt 0:00:01]} 16. g3 {[%emt 0:02:56]} Nc4 {[%emt 0:22:03]} 17. Bh3 {[%emt 0:04:06]} Bf8 {[%emt 0:03:25]} 18. b3 {[%emt 0:12:22]} Ne5 {[%emt 0:02:47]} 19. Nfd4 {[%emt 0:04:43]} Bh6+ {[%emt 0:03:57]} 20. Kb1 {[%emt 0:02:36]} Ke7 {[%emt 0:03:31]} 21. Nf4 {[%emt 0:05:12]} Bxf4 {[%emt 0:00:24]} 22. gxf4 {[%emt 0:00:02]} Nc6 {[%emt 0:05:14]} 23. Bxe6 {[%emt 0:14:59]} Nxd4 {[%emt 0:00:01]} 24. Bxd7 {[%emt 0:00:11]} Ne2 {[%emt 0:00:01]} 25. Rd2 {[%emt 0:00:56]} Nxf4 {[%emt 0:02:10]} 26. Bf5 {[%emt 0:01:58]} h5 {[%emt 0:07:15]} 27. Rc1 {[%emt 0:02:30]} Ne6 {[%emt 0:02:23]} 28. c4 {[%emt 0:02:40]} Rac8 {[%emt 0:01:57]} 29. cxb5 {[%emt 0:00:45]} Rxc1+ {[%emt 0:03:24]} 30. Kxc1 {[%emt 0:00:01]} axb5 {[%emt 0:00:19]} 31. Bxe6 {[%emt 0:06:43]} Kxe6 {[%emt 0:00:02]} 32. Rd5 {[%emt 0:00:08]} h4 {[%emt 0:02:18]} 33. Rxb5 {[%emt 0:02:17]} Rg8 {[%emt 0:00:13]} 34. a4 {[%emt 0:02:32]} Rg2 {[%emt 0:01:17]} 35. a5 {[%emt 0:01:09]} Rxh2 {[%emt 0:00:41]} 36. Kb1 {[%emt 0:02:16]} Rg2 {[%emt 0:01:13]} 37. Rh5 {[%emt 0:01:40]} Rg5 {[%emt 0:00:09]} 38. Rxh4 {[%emt 0:01:56]} Rxa5 {[%emt 0:00:02]} 39. Kc2 {[%emt 0:00:44]} Rg5 {[%emt 0:00:59]} 40. b4 {[%emt 0:00:00]} d5 {[%emt 0:00:00]} 41. exd5+ {[%emt 0:04:33]} Kxd5 {[%emt 0:02:42]} 42. Rh6 {[%emt 0:06:47]} Rf5 {[%emt 0:02:23]} 43. Kd3 {[%emt 0:00:20]} Rf3+ {[%emt 0:00:07]} 44. Ke2 {[%emt 0:00:18]} Rf4 {[%emt 0:00:50]} 45. Rh5+ {[%emt 0:03:20]} f5 {[%emt 0:00:18]} 46. b5 {[%emt 0:00:27]} Ke5 {[%emt 0:01:05]} 47. b6 {[%emt 0:01:42]} Rb4 {[%emt 0:00:06]} 48. Rh6 {[%emt 0:00:09]} f4 {[%emt 0:00:45]} 49. Kd3 {[%emt 0:01:12]} Kd5 {[%emt 0:01:00]} 50. Rh5+ {[%emt 0:00:33]} Kc6 {[%emt 0:00:30]} 51. Rh6+ {[%emt 0:00:07]} Kc5 {[%emt 0:00:24]} 52. b7 {[%emt 0:01:19]} Rxb7 {[%emt 0:00:12]} 53. Ke4 {[%emt 0:02:16]} Rf7 {[%emt 0:00:37]} 54. Rh3 {[%emt 0:00:20]} Kd6 {[%emt 0:00:08]} 55. Rf3 {[%emt 0:00:39]} Ke6 {[%emt 0:00:02]} 56. Rxf4 {[%emt 0:00:12]} Rxf4+ {[%emt 0:00:01]} 57. Kxf4 {[%emt 0:00:14]} 1/2-1/2

[Event "58th Akiba Rubinstein A 2022"]
[Site "Polanica-Zdroj"]
[Date "2022.08.17"]
[Round "5.9"]
[White "Barwinska, Ewa"]
[Black "Kasprzak, Lukasz"]
[Result "1-0"]
[ECO "B50"]
[WhiteElo "1940"]
[BlackElo "1938"]
[Annotator "NA RC"]
[PlyCount "91"]
[EventDate "2022.08.13"]
[EventCountry "POL"]
[SourceTitle "playchess.com"]
[Source "ChessBase"]
[SourceQuality "1"]
[TimeControl "40/5400+30:1800+30"]

1. e4 c5 {[%emt 0:03:04]} 2. Nf3 {[%emt 0:00:13]} d6 {[%emt 0:00:46]} 3. c3 {[%emt 0:00:06]} Nf6 {[%emt 0:01:55]} 4. Bd3 {[%emt 0:00:08]} g6 {[%emt 0:04:23]} 5. h3 {[%emt 0:00:22]} Bg7 {[%emt 0:02:05]} 6. O-O {[%emt 0:00:18]} O-O {[%emt 0:06:46]} 7. Bc2 {[%emt 0:00:11]} b6 {[%emt 0:05:16]} 8. d4 {[%emt 0:00:38]} cxd4 {[%emt 0:01:52]} 9. cxd4 {[%emt 0:00:16]} Bb7 {[%emt 0:03:35]} 10. Nc3 {[%emt 0:02:17]} Nbd7 {[%emt 0:02:12]} 11. Be3 {[%emt 0:07:51]} a6 {[%emt 0:11:40]} 12. Qd2 {[%emt 0:05:18]} b5 {[%emt 0:03:21]} 13. d5 {[%emt 0:02:12]} Rc8 {[%emt 0:09:19]} 14. Rac1 {[%emt 0:06:40]} Re8 {[%emt 0:03:02]} 15. Bh6 {[%emt 0:06:05]} Bh8 {[%emt 0:02:19]} 16. Nd4 {[%emt 0:07:36]} Nc5 {[%emt 0:09:07]} 17. f3 {[%emt 0:05:24]} b4 {[%emt 0:02:58]} 18. Nce2 {[%emt 0:02:03]} a5 {[%emt 0:01:14]} 19. Be3 {[%emt 0:04:54]} Qd7 {[%emt 0:04:03]} 20. a3 {[%emt 0:02:49]} Rb8 {[%emt 0:04:11]} 21. axb4 {[%emt 0:02:31]} axb4 {[%emt 0:00:01]} 22. Bd3 {[%emt 0:05:47]} Nxd3 {[%emt 0:01:10]} 23. Qxd3 {[%emt 0:00:06]} e6 {[%emt 0:03:14]} 24. dxe6 {[%emt 0:04:09]} fxe6 {[%emt 0:00:02]} 25. Rfd1 {[%emt 0:01:48]} Bg7 {[%emt 0:03:00]} 26. Nb3 {[%emt 0:02:38]} Red8 {[%emt 0:02:13]} 27. Na5 {[%emt 0:04:58]} e5 {[%emt 0:04:20]} 28. Bg5 {[%emt 0:06:16]} d5 {[%emt 0:02:14]} 29. Nxb7 {[%emt 0:01:42]} Rxb7 {[%emt 0:00:21]} 30. Bxf6 {[%emt 0:01:25]} Bxf6 {[%emt 0:00:31]} 31. exd5 {[%emt 0:02:56]} Rb5 {[%emt 0:01:14]} 32. d6 {[%emt 0:01:39]} Rb6 {[%emt 0:00:13]} 33. Qd5+ {[%emt 0:02:55]} Kg7 {[%emt 0:01:55]} 34. Rc7 {[%emt 0:03:10]} Qxc7 {[%emt 0:00:01]} 35. dxc7 {[%emt 0:00:13]} Rxd5 {[%emt 0:00:02]} 36. Rxd5 {[%emt 0:00:52]} Rc6 {[%emt 0:00:01]} 37. Rd7+ {[%emt 0:00:51]} Kh6 {[%emt 0:00:03]} 38. Rd6 {[%emt 0:01:44]} Rxc7 {[%emt 0:00:02]} 39. Rxf6 {[%emt 0:00:05]} Rc2 {[%emt 0:00:08]} 40. Kf2 {[%emt 0:00:00]} Rxb2 {[%emt 0:00:00]} 41. Re6 {[%emt 0:04:22]} b3 {[%emt 0:00:26]} 42. Rxe5 {[%emt 0:00:20]} Rb1 {[%emt 0:00:09]} 43. Rb5 {[%emt 0:00:32]} b2 {[%emt 0:00:10]} 44. Ng3 {[%emt 0:00:32]} Kg7 {[%emt 0:00:16]} 45. Ne4 {[%emt 0:00:07]} Kf7 {[%emt 0:00:07]} 46. Nd2 1-0

[Event "58th Akiba Rubinstein A 2022"]
[Site "Polanica-Zdroj"]
[Date "2022.08.17"]
[Round "5.10"]
[White "Lambrecht, Tomasz"]
[Black "Hetzer, Volkhard"]
[Result "1-0"]
[ECO "A90"]
[WhiteElo "1956"]
[BlackElo "1921"]
[Annotator "NA RC"]
[PlyCount "49"]
[EventDate "2022.08.13"]
[EventCountry "POL"]
[SourceTitle "playchess.com"]
[Source "ChessBase"]
[SourceQuality "1"]
[TimeControl "40/5400+30:1800+30"]

1. d4 {[%emt 0:00:09]} e6 {[%emt 0:01:57]} 2. c4 {[%emt 0:00:07]} f5 {[%emt 0:01:03]} 3. g3 {[%emt 0:00:20]} Nf6 {[%emt 0:00:09]} 4. Bg2 {[%emt 0:00:14]} c6 {[%emt 0:00:14]} 5. Nf3 {[%emt 0:00:39]} d5 {[%emt 0:00:06]} 6. O-O {[%emt 0:00:42]} Bd6 {[%emt 0:00:34]} 7. Nbd2 {[%emt 0:02:09]} O-O {[%emt 0:02:22]} 8. Ne1 {[%emt 0:00:08]} Ne4 {[%emt 0:09:50]} 9. Qc2 {[%emt 0:01:44]} b6 {[%emt 0:08:32]} 10. Nd3 {[%emt 0:16:01]} Bb7 {[%emt 0:03:42]} 11. Nf3 {[%emt 0:00:47]} Nd7 {[%emt 0:00:28]} 12. Bf4 {[%emt 0:04:32]} Be7 {[%emt 0:00:42]} 13. Nfe5 {[%emt 0:07:05]} Rc8 {[%emt 0:09:51]} 14. Rfc1 {[%emt 0:10:16]} Nxe5 {[%emt 0:06:26]} 15. Bxe5 {[%emt 0:04:52]} c5 {[%emt 0:28:44]} 16. dxc5 {[%emt 0:13:56]} bxc5 {[%emt 0:02:17]} 17. Nf4 {[%emt 0:06:46]} Qd7 {[%emt 0:02:35]} 18. Rd1 {[%emt 0:04:33]} Bf6 {[%emt 0:02:40]} 19. Bxf6 {[%emt 0:01:41]} Rxf6 {[%emt 0:00:06]} 20. cxd5 {[%emt 0:05:38]} exd5 {[%emt 0:00:05]} 21. Nd3 {[%emt 0:08:29]} Rd6 {[%emt 0:04:19]} 22. Bxe4 {[%emt 0:06:30]} dxe4 {[%emt 0:08:35]} 23. Ne5 {[%emt 0:00:01]} Rxd1+ {[%emt 0:01:31]} 24. Rxd1 {[%emt 0:00:09]} Bd5 {[%emt 0:01:33]} 25. Nxd7 1-0

[Event "58th Akiba Rubinstein A 2022"]
[Site "Polanica-Zdroj"]
[Date "2022.08.17"]
[Round "5.11"]
[White "Motyl, Tomasz"]
[Black "Betkowski, Andrzej"]
[Result "1/2-1/2"]
[ECO "C03"]
[WhiteElo "1936"]
[BlackElo "2063"]
[Annotator "NA RC"]
[PlyCount "69"]
[EventDate "2022.08.13"]
[EventCountry "POL"]
[SourceTitle "playchess.com"]
[Source "ChessBase"]
[SourceQuality "1"]
[TimeControl "40/5400+30:1800+30"]

1. e4 {[%emt 0:00:06]} e6 {[%emt 0:00:09]} 2. d4 {[%emt 0:00:23]} d5 {[%emt 0:00:15]} 3. Nd2 {[%emt 0:00:16]} h6 {[%emt 0:00:53]} 4. Ngf3 {[%emt 0:02:58]} Nf6 {[%emt 0:00:24]} 5. Bd3 {[%emt 0:02:40]} c5 {[%emt 0:00:42]} 6. dxc5 {[%emt 0:00:18]} Bxc5 {[%emt 0:04:13]} 7. Qe2 {[%emt 0:00:30]} Nc6 {[%emt 0:05:40]} 8. exd5 {[%emt 0:16:08]} Nxd5 {[%emt 0:01:08]} 9. Ne4 {[%emt 0:00:26]} Be7 {[%emt 0:02:32]} 10. a3 {[%emt 0:01:52]} f5 {[%emt 0:05:31]} 11. Ng3 {[%emt 0:02:38]} O-O {[%emt 0:02:06]} 12. O-O {[%emt 0:02:50]} Bf6 {[%emt 0:14:11]} 13. c4 {[%emt 0:07:02]} Nde7 {[%emt 0:04:39]} 14. Rd1 {[%emt 0:05:58]} Qc7 {[%emt 0:02:17]} 15. Nh5 {[%emt 0:06:53]} e5 {[%emt 0:08:40]} 16. Bc2 {[%emt 0:05:17]} e4 {[%emt 0:09:16]} 17. Nxf6+ {[%emt 0:00:42]} Rxf6 {[%emt 0:00:16]} 18. Nd4 {[%emt 0:01:35]} Nxd4 {[%emt 0:01:46]} 19. Rxd4 {[%emt 0:00:07]} Nc6 {[%emt 0:00:31]} 20. Rd1 {[%emt 0:01:36]} Be6 {[%emt 0:01:50]} 21. b3 {[%emt 0:05:11]} Rff8 {[%emt 0:11:02]} 22. Bb2 {[%emt 0:03:22]} Rfe8 {[%emt 0:02:15]} 23. Qe3 {[%emt 0:04:30]} Ne5 {[%emt 0:06:22]} 24. h3 {[%emt 0:05:30]} Nd7 {[%emt 0:04:24]} 25. Qd4 {[%emt 0:02:52]} Nf6 {[%emt 0:00:33]} 26. Qd6 {[%emt 0:04:48]} Qf7 {[%emt 0:03:48]} 27. Rd2 {[%emt 0:00:25]} Re7 {[%emt 0:00:17]} 28. Rad1 {[%emt 0:01:28]} Rd7 {[%emt 0:00:36]} 29. Qc5 {[%emt 0:04:16]} Rxd2 {[%emt 0:03:19]} 30. Rxd2 {[%emt 0:00:05]} Nd7 {[%emt 0:00:39]} 31. Qc7 {[%emt 0:02:07]} Nf8 {[%emt 0:00:55]} 32. Qc5 {[%emt 0:03:27]} b6 {[%emt 0:00:38]} 33. Qb4 Rd8 34. Qc5 Re8 35. Qb4 1/2-1/2